Cogmind - Beta 13 @@@ ROGUE MODE // 2024.04.23 @ 21:31:20 Player: Ray Result: Destroyed by Y-54 Guardian with Flak Gun Performance ------------- Evolutions (3) 1500 Regions Visited (7) 1400 Robots Destroyed (75) 375 Value Destroyed (2710) 2710 Prototype IDs (5) 100 Alien Tech Used (0) 0 Bonus (32) 32 TOTAL SCORE: 6117 Bonus ------- Follower Combat Kills 32 Cogmind --------- Core Integrity 0/700 Matter 162/300 Energy 100/100 System Corruption 2% Temperature Cool (6) Movement Core (50) Location -7/Storage Parts ------- > --- POWER (2) -------- (None) > --- PROPULSION (4) --- (None) > --- UTILITY (4) ------ Hacking Suite > --- WEAPON (3) ------- (None) > --- INVENTORY (5) ---- Aluminum Leg Peak State ------------ > --- POWER ------------ Light Angular Momentum Engine > --- PROPULSION ------- Medium Treads Medium Treads Medium Treads Medium Treads > --- UTILITY ---------- Improved Cooling System Small Storage Unit ECM Suite > --- WEAPON ----------- Gauss Rifle Gauss Rifle Gauss Rifle > --- INVENTORY -------- Light Treads Light Treads Advanced Weight Redist. System Shock Rifle Shock Rifle Heavy Assault Rifle Gauss Rifle Shock Bomb Launcher [Rating: 41] Favorites ----------- Power Light Deuterium Engine Engine Light Deuterium Engine Power Core Nuclear Core Propulsion Light Treads Treads Light Treads Leg Aluminum Leg Flight Unit VTOL Module Utility Small Storage Unit Device ECM Suite Storage Small Storage Unit Processor Targeting Computer Hackware Hacking Suite Weapon Gauss Rifle Energy Gun Shock Rifle Energy Cannon Plasma Cannon Ballistic Gun Gauss Rifle Ballistic Cannon Advanced Assault Cannon Build | -11 -10 -10 -9 -9 -8 -7 -7 ------- Run | Yrd Mat Min Mat Min Mat Fac Sto Slots Evolved 6 | . . . 2 . 2 2 . Power 1 | . . . . . . 1 . Propulsion 2 | . . . 2 . . . . Utility 2 | . . . . . 1 1 . Weapon 1 | . . . . . 1 . . Parts Attached 83 | 6 3 7 7 5 29 9 17 Power 13 | 1 . 3 . 1 6 . 2 Engine 8 | 1 . 3 . 1 2 . 1 Core 5 | . . . . . 4 . 1 Reactor . | . . . . . . . . Propulsion 29 | 2 1 1 5 3 11 3 3 Treads 24 | 2 1 . 5 3 11 . 2 Leg 4 | . . 1 . . . 2 1 Wheel . | . . . . . . . . Hover . | . . . . . . . . Flight 1 | . . . . . . 1 . Utility 18 | 1 2 1 . 1 3 3 7 Device 14 | . 1 . . 1 3 3 6 Storage 1 | 1 . . . . . . . Processor 2 | . 1 1 . . . . . Hackware 1 | . . . . . . . 1 Protection . | . . . . . . . . Artifact . | . . . . . . . . Weapon 23 | 2 . 2 2 . 9 3 5 Energy Gun 5 | 1 . . 2 . 2 . . Energy Cannon 3 | . . . . . 1 . 2 Ballistic Gun 11 | 1 . 1 . . 6 . 3 Ballistic Cannon 4 | . . 1 . . . 3 . Launcher . | . . . . . . . . Special Weapon . | . . . . . . . . Impact Weapon . | . . . . . . . . Slashing Weapon . | . . . . . . . . Piercing Weapon . | . . . . . . . . Special Melee Weapon . | . . . . . . . . Unidentified Prototypes 1 | . . . . . 1 . . Parts Lost 51 | . . 4 . 3 14 6 24 Power 8 | . . 1 . 1 3 . 3 Propulsion 16 | . . 2 . 1 5 3 5 Utility 10 | . . 1 . 1 . . 8 Weapon 17 | . . . . . 6 3 8 Highest Loss Streak 10 | . . 2 . 2 10 4 8 To Critical Strikes 1 | . . . . . 1 . . Average Slot Usage (%) 87 | . 97 95 90 99 91 67 62 Engine 8 | . 12 13 11 11 6 . 1 Core 1 | . . . . . 1 7 3 Treads 23 | . 28 22 30 44 30 2 3 Leg 1 | . . 2 3 . . 3 5 Device 10 | . 9 . . 3 17 21 19 Storage 10 | . 14 14 11 11 9 7 4 Processor 4 | . 3 12 11 7 . . . Energy Gun 5 | . 14 . 13 22 3 1 . Ballistic Gun 12 | . 14 14 4 . 22 6 6 Ballistic Cannon 5 | . . 13 4 . . 13 5 Naked Turns . | . . . . . . . . Heaviest Build 35 | 10 12 22 20 24 30 31 35 Greatest Support 112 | 40 40 40 83 83 112 40 40 Greatest Overweight (x) 7 | . . 1 1 . 7 7 2 Average Overweight (x) . | . . . . . . 1 . Largest Inventory Capacity 8 | 8 8 8 8 8 8 8 8 Average Capacity 7 | 7 8 8 8 8 8 8 7 Most Carried 8 | 4 8 8 8 8 8 8 7 Average Carried 6 | 2 7 6 7 7 7 4 4 Final Capacity 8 | 8 8 8 8 8 8 8 5 Final Carried 8 | 4 7 6 8 6 4 7 1 Class Distribution -------------------- 42% | Gunner 41% | Mutant 14% | Scavenger-Mutant Dominant Class ---------------- Mutant | -10/Materials Mutant | -10/Mines Scavenger-Mutant | -9/Materials Scavenger-Mutant | -9/Mines Gunner | -8/Materials Gunner | -7/Factory Gunner | -7/Storage Resources | -11 -10 -10 -9 -9 -8 -7 -7 ----------- Run | Yrd Mat Min Mat Min Mat Fac Sto Matter Collected 2229 | 217 99 233 88 53 814 241 484 Remotely . | . . . . . . . . Salvage Created 2829 | . 182 26 237 197 1244 430 513 Parts 161 | . 13 . 10 17 72 21 28 Haulers Intercepted . | . . . . . . . . Recyclers Shooed 2 | . . . . . . . 2 Parts Field Recycled . | . . . . . . . . Retrieved Matter . | . . . . . . . . Parts Self-Destructed . | . . . . . . . . Prevented . | . . . . . . . . Kills | -11 -10 -10 -9 -9 -8 -7 -7 ------- Run | Yrd Mat Min Mat Min Mat Fac Sto Combat Hostiles Destroyed 76 | . 6 7 4 8 27 12 12 Guns 52 | . 6 3 3 8 23 4 5 Cannons 20 | . . 4 1 . 2 7 6 AOE 3 | . . . . . 2 1 . Classes Destroyed 14 | . 3 1 2 1 4 1 2 Worker 2 | . . . . . 2 . . Builder 1 | . . . . . . . 1 Recycler 1 | . . . . . . 1 . Watcher 2 | . 1 . 1 . . . . Swarmer 19 | . 3 . . 6 6 4 . Grunt 30 | . 3 . 1 1 14 5 6 Brawler 2 | . . . . 1 1 . . Duelist 1 | . . . 1 . . . . Sentry 11 | . . . 2 . 3 2 4 Specialist 1 | . . . . . 1 . . Hunter 2 | . . . . . 1 1 . Programmer 2 | . . . . . . . 2 Heavy 1 | . . . . . 1 . . Assembled 7 | . . 7 . . . . . Best Kill Streak 7 | . 3 2 2 3 6 5 7 Combat Bots Only 7 | . 3 2 2 3 5 4 7 Max Kills in Single Turn 2 | . 1 1 1 1 2 2 1 Gunslinging 1 | . . . . . 1 . . Exploded 2 | . . . . . 2 1 . Melee . | . . . . . . . . Uniques/NPCs Destroyed . | . . . . . . . . Combat | -11 -10 -10 -9 -9 -8 -7 -7 -------- Run | Yrd Mat Min Mat Min Mat Fac Sto Hostile Shots Fired 910 | . 38 63 19 68 194 91 437 Missed 304 | . 12 27 6 11 50 24 174 Damage Taken 7192 | . 273 552 166 546 2268 926 2461 Core 1090 | . 75 33 14 36 230 139 563 Absorbed by Shields . | . . . . . . . . Regen/Repaired (Parts) 94 | . 36 . . . 58 . . Core Remaining (%) 75 | 100 . 56 . 87 58 . . Volleys Fired 236 | . 27 18 9 29 71 24 58 Largest 3 | . 2 2 2 2 3 3 3 Hottest 208 | . 60 71 125 125 119 135 208 Shots Fired 516 | . 54 37 18 54 179 71 103 Gun 394 | . 54 18 16 54 175 27 50 Cannon 122 | . . 19 2 . 4 44 53 Launcher . | . . . . . . . . Special . | . . . . . . . . Kinetic 372 | . 27 37 4 . 156 66 82 Thermal 99 | . 27 . 7 29 10 5 21 Explosive . | . . . . . . . . Electromagnetic 45 | . . . 7 25 13 . . Robot Hit Streak 23 | . 10 5 10 11 23 8 9 Robot Miss Streak 7 | . 2 7 1 5 2 5 3 Penetration Max 1 | . . . . . 1 . . Secondary Targets 11 | . 1 . . 3 5 2 . Max Gunslinging Chain 1 | . 1 . . 1 1 1 . Shots Hit Robots 332 | . 38 19 13 27 120 42 73 Core Hits 136 | . 11 11 7 9 52 22 24 Critical Kills 1 | . . . . . . . 1 Critical Parts Destroyed 1 | . . 1 . . . . . Critical Strikes 10 | . . 1 2 1 1 1 4 Burn 4 | . . . 2 1 1 . . Meltdown 1 | . . . . . . . 1 Destroy 1 | . . 1 . . . . . Blast 4 | . . . . . . 1 3 Melee Attacks . | . . . . . . . . Impact . | . . . . . . . . Slashing . | . . . . . . . . Piercing . | . . . . . . . . Sneak Attacks . | . . . . . . . . Combat Hostiles . | . . . . . . . . Follow-up Attacks . | . . . . . . . . Damage Inflicted 6524 | . 374 356 311 520 2179 1157 1627 Guns 4408 | . 374 174 271 520 2037 326 706 Cannons 1804 | . . 182 40 . 68 593 921 Explosions 312 | . . . . . 74 238 . Melee . | . . . . . . . . Ramming . | . . . . . . . . Kinetic 4470 | . 143 356 73 . 1773 842 1283 Thermal 1275 | . 231 . 127 269 227 77 344 Explosive 238 | . . . . . . 238 . Electromagnetic 541 | . . . 111 251 179 . . Impact . | . . . . . . . . Slashing . | . . . . . . . . Piercing . | . . . . . . . . Highest Corruption 5 | . . 5 . 2 . . 2 Average Corruption 3 | . . 5 . 2 . . 1 Corruption Purged . | . . . . . . . . Corruption Blocked . | . . . . . . . . Effects 17 | . . 11 . 2 . . 4 Message Errors 3 | . . 1 . . . . 2 Matter Fused 2 | . . 1 . 1 . . . Heat Flow Errors 2 | . . 2 . . . . . Energy Discharges 3 | . . 3 . . . . . Data Loss (minor) 2 | . . 1 . 1 . . . Data Loss (major) 2 | . . 2 . . . . . Misfires 1 | . . 1 . . . . . Alerts 2 | . . . . . . . 2 Overload Shots . | . . . . . . . . Overflow Damage 59 | . . . . . . 42 17 Projectiles 17 | . . . . . . . 17 Explosions 42 | . . . . . . 42 . Melee . | . . . . . . . . Knockbacks 12 | . . 3 . . . 6 3 Impact . | . . . . . . . . Kinetic 12 | . . 3 . . . 6 3 Secondary . | . . . . . . . . Self-Inflicted Damage 135 | . . . . . 37 98 . Shots 2 | . . . . . 1 1 . Rammed . | . . . . . . . . Targets Rammed . | . . . . . . . . Kicked . | . . . . . . . . Crushed . | . . . . . . . . Highest Temperature 475 | . 134 230 255 442 51 61 475 Average Temperature 123 | . 48 46 82 226 19 23 165 Received Heat Transfer 1949 | . 114 80 63 66 522 141 963 Effects 11 | . . . . 8 . . 3 Shutdowns 4 | . . . . 3 . . 1 Energy Bleed 1 | . . . . . . . 1 Interference 4 | . . . . 4 . . . Matter Decay 1 | . . . . . . . 1 Damage (minor) 1 | . . . . 1 . . . Siege Activations . | . . . . . . . . Robots Corrupted . | . . . . . . . . Combat Hostiles . | . . . . . . . . Parts Fried 3 | . . . 1 2 . . . Impact Corruptions . | . . . . . . . . Robots Melted 1 | . . . . . . . 1 Combat Hostiles 1 | . . . . . . . 1 Parts Melted 1 | . . . . . 1 . . Heat Transferred 2718 | . 525 . 370 555 470 148 650 Parts Sabotaged . | . . . . . . . . Parts Stolen . | . . . . . . . . Parts Stripped . | . . . . . . . . Power Chain Reactions 1 | . . . . . 1 . . Alert | -11 -10 -10 -9 -9 -8 -7 -7 ------- Run | Yrd Mat Min Mat Min Mat Fac Sto Peak Influence 374 | . 170 21 191 158 374 341 339 Initial 170 | . . . . 23 19 170 86 Average 100 | . 42 1 75 99 113 225 200 Maximum Alert Level 1 | . . . . . 1 1 1 Low Security (%) 84 | 100 100 100 100 100 81 46 62 Level 1 15 | . . . . . 18 53 37 Level 2 . | . . . . . . . . Level 3 . | . . . . . . . . Level 4 . | . . . . . . . . Level 5 . | . . . . . . . . High Security . | . . . . . . . . Max Security . | . . . . . . . . Squads Dispatched 17 | . 2 . 2 . 6 4 3 Investigation 7 | . 1 . . . 3 2 1 Extermination 1 | . . . . . . 1 . Reinforcement 9 | . 1 . 2 . 3 1 2 Assault . | . . . . . . . . Garrison . | . . . . . . . . Intercept . | . . . . . . . . Searches Triggered . | . . . . . . . . Construction Impeded 1 | . . . . . . . 1 Haulers Reinforced . | . . . . . . . . Active Scanning Responses . | . . . . . . . . Cargo Convoy Interrupts . | . . . . . . . . Stealth | -11 -10 -10 -9 -9 -8 -7 -7 --------- Run | Yrd Mat Min Mat Min Mat Fac Sto Distress Signals 7 | . 2 1 1 . 1 1 1 Communications Jammed . | . . . . . . . . Distress Signals . | . . . . . . . . Times Spotted 128 | . 14 12 17 9 41 16 19 Peak Tracking Total 7 | . 4 4 4 3 7 4 5 Tactical Retreats 7 | . . . . 1 5 1 . Traps | -11 -10 -10 -9 -9 -8 -7 -7 ------- Run | Yrd Mat Min Mat Min Mat Fac Sto Traps Triggered 3 | . . 1 . . 2 . . Indirectly . | . . . . . . . . Trap Hack Attempts . | . . . . . . . . Triggered . | . . . . . . . . Disarmed 6 | . . . 6 . . . . Reprogrammed . | . . . . . . . . Reused . | . . . . . . . . Traps Extracted . | . . . . . . . . Installed . | . . . . . . . . Triggered . | . . . . . . . . Machines | -11 -10 -10 -9 -9 -8 -7 -7 ---------- Run | Yrd Mat Min Mat Min Mat Fac Sto Machines Disabled 5 | . . 1 . . 1 3 . Max in Single Turn 2 | . . 1 . . 1 2 . Machines Repaired . | . . . . . . . . Machines Dismantled . | . . . . . . . . Machines Sabotaged . | . . . . . . . . Overloaded Fab Kills . | . . . . . . . . Hacking | -11 -10 -10 -9 -9 -8 -7 -7 --------- Run | Yrd Mat Min Mat Min Mat Fac Sto Machines Accessed 25 | . 5 1 5 . 7 3 4 Terminals 18 | . 3 . 5 . 6 1 3 Fabricators 1 | . . . . . . 1 . Repair Stations 2 | . 1 . . . 1 . . Recycling Units 3 | . 1 . . . . 1 1 Scanalyzers . | . . . . . . . . Garrison Access . | . . . . . . . . Total Hacks 77 | . 19 1 16 . 26 8 7 Successful 47 | . 10 1 11 . 16 4 5 Failed 29 | . 9 . 5 . 9 4 2 Catastrophic 4 | . . . 1 . 2 1 . Database Lockouts 1 | . . . . . 1 . . Manual . | . . . . . . . . Terminals 59 | . 11 . 16 . 24 4 4 Fabricators 1 | . . . . . . 1 . Repair Stations 6 | . 4 . . . 2 . . Recycling Units 10 | . 4 . . . . 3 3 Scanalyzers . | . . . . . . . . Garrison Access . | . . . . . . . . Terminal Hacks 36 | . 5 1 11 . 14 2 3 Record 11 | . . . . . 8 2 1 Robot Schematic 1 | . . . . . . . 1 Robot Analysis 2 | . . . 2 . . . . Prototype ID Bank 2 | . . . 1 . 1 . . Open Door 2 | . . 1 . . . . 1 Level Access Points 1 | . . . 1 . . . . Branch Access Points 1 | . . . 1 . . . . Emergency Access Points 2 | . . . 1 . 1 . . Recycling Unit Index 1 | . 1 . . . . . . Alert Level 3 | . 1 . 1 . 1 . . Disarm Traps 1 | . . . 1 . . . . Dispatch Records 2 | . . . 1 . 1 . . Maintenance Status 3 | . 1 . 1 . 1 . . Investigation Status 2 | . 1 . 1 . . . . Zone Layout 2 | . 1 . . . 1 . . Fabricator Hacks 1 | . . . . . . 1 . Network Status 1 | . . . . . . 1 . Repair Station Hacks 5 | . 3 . . . 2 . . Scan Component 3 | . 2 . . . 1 . . Repair 2 | . 1 . . . 1 . . Recycling Unit Hacks 5 | . 2 . . . . 1 2 Process 1 | . . . . . . . 1 Report Inventory 3 | . 1 . . . . 1 1 Retrieve Components 1 | . 1 . . . . . . Scanalyzer . | . . . . . . . . Garrison Access Hacks . | . . . . . . . . Unauthorized Hacks . | . . . . . . . . Terminals . | . . . . . . . . Fabricators . | . . . . . . . . Repair Stations . | . . . . . . . . Recycling Units . | . . . . . . . . Scanalyzers . | . . . . . . . . Garrison Access . | . . . . . . . . Data Cores Recovered . | . . . . . . . . Used . | . . . . . . . . Hacking Detections 19 | . 4 . 5 . 6 2 2 Full Trace Events 7 | . 2 . . . 2 2 1 Feedback Events . | . . . . . . . . Feedback Blocked . | . . . . . . . . Robot Schematics Acquired 1 | . . . . . . . 1 Robots Built . | . . . . . . . . Authchips . | . . . . . . . . Time . | . . . . . . . . Total Robot Build Rating . | . . . . . . . . Part Schematics Acquired . | . . . . . . . . Parts Built . | . . . . . . . . Authchips . | . . . . . . . . Time . | . . . . . . . . Total Part Build Rating . | . . . . . . . . Parts Repaired 2 | . 1 . . . 1 . . Time 76 | . 26 . . . 50 . . Parts Recycled . | . . . . . . . . Recycled Matter 1 | . . . . . . . 1 Retrieved Matter . | . . . . . . . . Retrieved Components 2 | . 2 . . . . . . Parts Scanalyzed . | . . . . . . . . Part Schematics Acquired . | . . . . . . . . Parts Damaged . | . . . . . . . . Bothacking | -11 -10 -10 -9 -9 -8 -7 -7 ------------ Run | Yrd Mat Min Mat Min Mat Fac Sto Used RIF Installer . | . . . . . . . . Robots Hacked . | . . . . . . . . Non-combat . | . . . . . . . . Combat . | . . . . . . . . Robot Hacks Applied . | . . . . . . . . Relay Couplers Released . | . . . . . . . . Fabnet Peak Effective % . | . . . . . . . . Robots Rewired . | . . . . . . . . Allies Hacked . | . . . . . . . . Hacks Repelled . | . . . . . . . . Allies | -11 -10 -10 -9 -9 -8 -7 -7 -------- Run | Yrd Mat Min Mat Min Mat Fac Sto Total Allies 1 | . . 1 . . . . . Largest Group 1 | . . 1 1 . . . . Highest-Rated Group 31 | . . 31 31 . . . . Highest-Rated Ally 31 | . . 31 31 . . . . Total Orders . | . . . . . . . . Ally Attacks 10 | . . . 10 . . . . Total Damage 150 | . . . 150 . . . . Kills 2 | . . . 2 . . . . Allies Corrupted . | . . . . . . . . Allies Melted . | . . . . . . . . Intel | -11 -10 -10 -9 -9 -8 -7 -7 ------- Run | Yrd Mat Min Mat Min Mat Fac Sto Robot Analysis Total 2 | . . . 2 . . . . Derelict Logs Recovered 4 | . . 3 . 1 . . . Drone Launches 12 | . . . . . . . 12 Drone Recoveries 9 | . . . . . . . 9 Exploration | -11 -10 -10 -9 -9 -8 -7 -7 ------------- Run | Yrd Mat Min Mat Min Mat Fac Sto Turns Passed 6192 | 98 828 1179 573 468 1591 841 614 Spaces Moved 3086 | 59 434 657 285 226 764 399 262 Core 164 | 10 . . . . 2 46 106 Treads 2377 | 49 434 544 209 226 762 86 67 Legs 426 | . . 113 76 . . 148 89 Wheels . | . . . . . . . . Hover . | . . . . . . . . Flight 119 | . . . . . . 119 . Fastest Speed 50 | 50 160 160 160 160 160 120 50 Average Speed 161 | 141 160 165 168 160 160 173 143 Slowest Speed 435 | 160 160 190 190 160 400 435 190 Overloaded Moves . | . . . . . . . . Propulsion Burnouts . | . . . . . . . . Robots Hopped . | . . . . . . . . Cave-ins Triggered . | . . . . . . . . Exploration Rate (%) 39 | 4 52 90 27 38 49 13 39 Regions Visited 7 Branch Regions 3 Pre-discovered Areas 3 | . . 3 . . . . . Known Exits Taken 3 | . 1 . 1 1 . . . Unknown Exits Taken 4 | 1 . 1 . . 1 1 . Scrap Searched 4 | . . 1 . 3 . . . Spaces Dug 2 | . . . . . . . 2 Terrain Destroyed 45 | . . 12 1 . 7 10 15 Melee . | . . . . . . . . Projectile 30 | . . 12 1 . 1 1 15 AOE 14 | . . . . . 5 9 . Terrain Rammed . | . . . . . . . . Walls Destroyed . | . . . . . . . . Machines Disabled . | . . . . . . . . Actions | -11 -10 -10 -9 -9 -8 -7 -7 --------- Run | Yrd Mat Min Mat Min Mat Fac Sto Total 3892 | 74 520 718 361 278 1009 504 428 Wait 366 | . 45 20 49 18 103 51 80 Move 3079 | 58 433 656 284 225 763 398 262 Hop . | . . . . . . . . Pick Up 90 | 10 8 10 7 1 27 16 11 Fast Attach 8 | . . . 3 . 5 . . Attach 59 | 6 1 4 1 3 22 7 15 Detach 2 | . . . . . 2 . . Swap 16 | . 2 3 3 2 2 2 2 Drop 36 | . 4 7 5 . 14 6 . Fire 236 | . 27 18 9 29 71 24 58 Melee . | . . . . . . . . Ram . | . . . . . . . . Kick . | . . . . . . . . Crush . | . . . . . . . . Escape Stasis . | . . . . . . . . Rewire . | . . . . . . . . Trap . | . . . . . . . . Miscellaneous . | . . . . . . . . Route ------- -11/Scrapyard -10/Materials (discovered 3 exits: *Mat / *Min x2) -10/Mines (discovered 2 exits: *Mat x2) -9/Materials (discovered 5 exits: Mat x3 / *Min x2) -9/Mines (discovered 2 exits: *Mat / [*Exi]) -8/Materials -7/Factory -7/Storage History --------- Turn | Location | Event 34 | -11/Scrapyard | Discovered new exit (range 15) 99 | -11/Scrapyard | Entered Materials 192 | -10/Materials | Discovered new exit (range 7) 285 | -10/Materials | Discovered new exit (range 9) 303 | -10/Materials | Build established: Mutant 617 | -10/Materials | Discovered new exit (range 9) 783 | -10/Materials | Identified exit to Mines 878 | -10/Materials | Repaired Lgt. Ion Engine 927 | -10/Materials | Entered Mines 948 | -10/Mines | A weapon hastily lodged in a ceiling crevice suddenly fell to the ground 971 | -10/Mines | Joined a pair of Derelicts in attacking an 0b10 outpost 1066 | -10/Mines | Met a Derelict who couldn't figure out how to use a Trap Extractor 1160 | -10/Mines | Learned Materials security intel 1355 | -10/Mines | Assembled infested the area 1820 | -10/Mines | Discovered new exit (range 5) 2029 | -10/Mines | Discovered new exit (range 11) 2051 | -10/Mines | Escorted by a lone wolf Derelict 2071 | -10/Mines | Learned location of Storage (-7) 2106 | -10/Mines | Entered Materials 2106 | -9/Materials | Accompanied by 1 ally 2106 | -9/Materials | Evolved 2 slots: Propulsion x2 2169 | -9/Materials | Identified exit to Materials 2599 | -9/Materials | Build established: Scavenger-Mutant 2609 | -9/Materials | Identified exit to Mines 2679 | -9/Materials | Entered Mines 2715 | -9/Mines | Learned Materials stockpile data 2719 | -9/Mines | Met a Derelict bent on vengeance 2754 | -9/Mines | Deemed a non-threat by the Exiles lab entrance 2755 | -9/Mines | Discovered new exit (range 5) 3128 | -9/Mines | Discovered exit to Materials (range 5) 3147 | -9/Mines | Entered Materials 3147 | -8/Materials | Evolved 2 slots: Utility x1, Weapon x1 3493 | -8/Materials | Build established: Gunner 3886 | -8/Materials | Central database locked down 3968 | -8/Materials | Repaired Lgt. Angular Momentum Engine 4380 | -8/Materials | Lost 10 parts (2p4n4w) 4710 | -8/Materials | Discovered new exit (range 9) 4738 | -8/Materials | Entered Factory 4738 | -7/Factory | Evolved 2 slots: Power x1, Utility x1 4930 | -7/Factory | Lost 4 parts (2n2w) 5554 | -7/Factory | Discovered new exit (range 9) 5579 | -7/Factory | Entered Storage 5802 | -7/Storage | Destroyed 7 combat bots 5844 | -7/Storage | Core integrity fell below 50% 5858 | -7/Storage | Lost 4 parts (2n1u1w) 6068 | -7/Storage | Lost 7 parts (2p2u3w) 6178 | -7/Storage | Core integrity fell below 20% 6193 | -7/Storage | Destroyed by Y-54 Guardian with Flak Gun Last Messages --------------- Drone released from Drone Bay. K-01 Serf collects debris. Acquired 10 matter. K-01 Serf collects debris. G-47 Trooper destroyed. Drone retrieved by Drone Bay. K-01 Serf collects debris. Acquired 55 matter. Drone retrieved by Drone Bay. Adv. Weight Redist. System destroyed. K-01 Serf collects debris. Acquired Aluminum Leg. K-01 Serf collects debris. Lgt. Treads destroyed. K-01 Serf collects debris. Drone Bay destroyed. System Restoration Module destroyed. K-01 Serf collects debris. Lgt. Treads destroyed. K-01 Serf collects debris. Map ----- +----------------------------------------------------+ | ???????????# !!! #????# #?????# | | ???????????# !!! #????# ####### | | ???????????# !!! #########+##+####### ## | | ???????????#""" + | | ???????????#"R ] ## T | | ???????????#""" ## ####### ###### ##### | | ??????????## "" ## #?????# #???##+####???## | | ??????????# % ## #?????# #???# ######### | | ??????????#########+## #?????# #???# #!!!!#### | | ?????###### ### ##????#+#???# #?#| | | ?????# # % "#??????????##T# #?# | | ?????# """ # """% * T#???????????########?# | | ?????# """ # "" =%= "#????????????????????# | | ?????#"" """ # """ [ ##????????????????????# | | ?????#"" + #????????????????????# | | ?????#"T """ # ^#????????????????????# | | ?????#"" """ #+#########YY/ ?????????????# | | ?????#"" """ # ## # ???????????## | | ?????? # ! ## ###" "????????????????? | | ?????########## # #??R""???????????????? | | ??????????????# + #????????????????????? | | ??????????????# # #????????????????????? | | ??????????????# """" # #????????????????????? | | ??????????????# """" ## ##????????????????????? | | ??????????????# """" ## #?????????????????????? | | ??????????????# """? ##@ +?????????????????????? | | ???????????????####????## #?????????????????????? | | ????????????????????????# #?????????????????????? | | ???????????????????????? #?????????????????????? | | ???????????????????????? #?????????????????????? | | ????????????????????????####?????????????????????? | | ?????????????????????????????????????????????????? | | ?????????????????????????????????????????????????? | | ?????????????????????????????????????????????????? | | ?????????????????????????????????????????????????? | | ?????????????????????????????????????????????????? | | ?????????????????????????????????????????????????? | | ?????????????????????????????????????????????????? | | | | | | | | | | | | | | | | | | | | | | | | | +----------------------------------------------------+ Best States ------------- Heat Dissipation 58 Energy Generation 25 Energy Capacity 350 Matter Stores 300 Matter Capacity 300 Sight Range 16 Terrain Scan Density 10 ECM Strength 1 Additional Mass Support 9 Evasion (%) 55 Targeting Accuracy 5 Recoil Reduction 4 Offensive Hacking 10 Item Schematics ----------------- None Robot Schematics ------------------ B-48 Gladiator | -7/Storage | Hacked Fabricated ------------ Nothing Alien Tech Used ----------------- None Achievements -------------- I Survived The Infestation Challenges ------------ None Game ------ Seed MinesnifferZhirovSpoofer Manual? 0 Play Time 01:03:44 Cumulative 5.0 hours Start 2024.04.15 @ 21:30:58 End 2024.04.23 @ 21:31:20 Sessions 3 Manual Loads 0 Difficulty Rogue Special Mode None Game No. 5 Rogue 5 Adventurer 0 Explorer 0 Win Type - Total 0 Types 0/0/0/0/0/0/0/0/0 Lore% 16 Gallery% 10 Achievement% 10 Wizard Run 0 Options --------- Layout 1 ASCII 0 Keyboard 0 Movement Arrows Keybinds 0 Fullscreen 2 Font 32/SmallcapsGlow Map View 50x35 Zoom Use 0% Tactical HUD 0 Map Filters NONE Filters NONE Steam 1 RUN: 8ef40866-954a-426e-96cd-4cc58eeab3ce